fUST/lending_fUST_20250116
["ID","MTS","AMOUNT","RATE_DAILY","PERIOD"]
[349138217,1736985052265,-151.0,0.00019178,2]
[349138218,1736985052275,-151.0,0.00019178,2]
[349138221,1736985052285,-151.0,0.00019178,2]
[349138223,1736985052296,-500.0,0.00019178,2]
[349138225,1736985052306,-151.0,0.00019178,2]
[349138227,1736985052315,-500.0,0.00019178,2]
[349138229,1736985052325,-151.0,0.00019178,2]
[349138231,1736985052335,-500.0,0.00019178,2]
[349138233,1736985052344,-151.0,0.00019178,2]
[349138235,1736985052354,-151.0,0.00019178,2]
[349138237,1736985052364,-255.585275,0.00019178,2]
[349138239,1736985052374,-500.0,0.00019178,2]
[349138241,1736985052383,-500.0,0.00019178,2]
[349138243,1736985052392,-500.0,0.00019178,2]
[349138245,1736985052402,-202.04058,0.00019178,2]
[349138247,1736985052411,-500.0,0.00019178,2]
[349138249,1736985052421,-151.0,0.00019178,2]
[349138251,1736985052431,-151.0,0.00019178,2]
[349138253,1736985052440,-500.0,0.00019178,2]
[349138255,1736985052450,-500.0,0.00019178,2]
[349138257,1736985052459,-500.0,0.00019178,2]
[349138259,1736985052468,-500.0,0.00019178,2]
[349138261,1736985052477,-500.0,0.00019178,2]
[349138263,1736985052486,-500.0,0.00019178,2]
[349138265,1736985052495,-500.0,0.00019178,2]
[349138267,1736985052507,-500.0,0.00019178,2]
[349138269,1736985052517,-500.0,0.00019178,2]
[349138271,1736985052526,-500.0,0.00019178,2]
[349138274,1736985052536,-500.0,0.00019178,2]
[349138276,1736985052546,-500.0,0.00019178,2]
[349138278,1736985052555,-438.88,0.00019178,2]
[349138280,1736985052564,-500.0,0.00019178,2]
[349138281,1736985052574,-914.53,0.00019178,2]
[349138284,1736985052583,-524.03,0.00019178,2]
[349138286,1736985052592,-2381.59,0.00019178,2]
[349138287,1736985052602,-2381.59,0.00019178,2]
[349138289,1736985052612,-2381.59,0.00019178,2]
[349138302,1736985052713,-2381.59,0.00019178,2]
[349138304,1736985052726,-2381.59,0.00019178,2]
[349138306,1736985052736,-2381.59,0.00019178,2]
[349138308,1736985052745,-2381.59,0.00019178,2]
[349138310,1736985052755,-2381.59,0.00019178,2]
[349138311,1736985052765,-2381.59,0.00019178,2]
[349138312,1736985052775,-500.0,0.00019178,2]
[349138313,1736985052784,-2381.59,0.00019178,2]
[349138315,1736985052794,-2381.59,0.00019178,2]
[349138316,1736985052803,-2381.59,0.00019178,2]
[349138318,1736985052814,-500.0,0.00019178,2]
[349138319,1736985052824,-2381.59,0.00019178,2]
[349138320,1736985052834,-2381.59,0.00019178,2]
[349138321,1736985052845,-219.40263,0.00019178,2]
[349138322,1736985052855,-2381.59,0.00019178,2]
[349138323,1736985052865,-219.40263,0.00019178,2]
[349138324,1736985052874,-2381.59,0.00019178,2]
[349138325,1736985052886,-219.40263,0.00019178,2]
[349138326,1736985052896,-2381.59,0.00019178,2]
[349138327,1736985052906,-219.40263,0.00019178,2]
[349138328,1736985052916,-2381.59,0.00019178,2]
[349138329,1736985052928,-219.40263,0.00019178,2]
[349138330,1736985052937,-219.40263,0.00019178,2]
[349138331,1736985052947,-2381.59,0.00019178,2]
[349138332,1736985052959,-2620.18,0.00019178,2]
[349138333,1736985052968,-219.40263,0.00019178,2]
[349138334,1736985052978,-2381.59,0.00019178,2]
[349138335,1736985052989,-2381.59,0.00019178,2]
[349138336,1736985052998,-219.40263,0.00019178,2]
[349138337,1736985053008,-2381.59,0.00019178,2]
[349138338,1736985053019,-2381.59,0.00019178,2]
[349138339,1736985053029,-2381.68628146,0.00019178,2]
[349138340,1736985053038,-219.40263,0.00019178,2]
[349138341,1736985053048,-219.40263,0.00019178,2]
[349138342,1736985053058,-219.40263,0.00019178,2]
[349138343,1736985053068,-500.0,0.00019178,2]
[349138344,1736985053078,-219.40263,0.00019178,2]
[349138345,1736985053088,-219.40263,0.00019178,2]
[349138346,1736985053097,-3972.55,0.00019178,2]
[349138347,1736985053106,-219.40263,0.00019178,2]
[349138348,1736985053116,-219.40263,0.00019178,2]
[349138349,1736985053125,-3432.3,0.00019178,2]
[349138350,1736985053134,-500.0,0.00019178,2]
[349138351,1736985053144,-219.40263,0.00019178,2]
[349138352,1736985053154,-219.40263,0.00019178,2]
[349138353,1736985053163,-219.40263,0.00019178,2]
[349138354,1736985053172,-219.40263,0.00019178,2]
[349138355,1736985053182,-219.402622,0.00019178,2]
[349138356,1736985053191,-500.0,0.00019178,2]
[349138357,1736985053201,-19502.35,0.00019178,2]
[349138358,1736985053210,-151.0,0.00019178,2]
[349138359,1736985053220,-500.0,0.00019178,2]
[349138360,1736985053230,-500.0,0.00019178,2]
[349138361,1736985053240,-500.0,0.00019178,2]
[349138362,1736985053250,-500.0,0.00019178,2]
[349138363,1736985053260,-1507.05,0.00019178,2]
[349138364,1736985053269,-500.0,0.00019178,2]
[349138365,1736985053279,-500.0,0.00019178,2]
[349138366,1736985053288,-1000.0,0.00019178,7]
[349138367,1736985053297,-500.0,0.00019178,2]
[349138368,1736985053307,-749.17689,0.00019178,2]
[349138369,1736985053317,-749.17689,0.00019178,2]
[349138370,1736985053327,-749.17689,0.00019178,2]
[349138371,1736985053337,-749.17689,0.00019178,2]
[349138372,1736985053346,-749.17689,0.00019178,2]
[349138373,1736985053355,-749.17689,0.00019178,2]
[349138374,1736985053365,-749.17689,0.00019178,2]
[349138375,1736985053374,-500.0,0.00019178,2]
[349138376,1736985053383,-749.17689,0.00019178,2]
[349138377,1736985053392,-749.17689,0.00019178,2]
[349138378,1736985053402,-749.17689,0.00019178,2]
[349138379,1736985053412,-749.17689,0.00019178,2]
[349138380,1736985053421,-749.17689,0.00019178,2]
[349138381,1736985053431,-500.0,0.00019178,2]
[349138382,1736985053441,-749.17689,0.00019178,2]
[349138383,1736985053450,-749.17689,0.00019178,2]
[349138384,1736985053460,-749.17689,0.00019178,2]
[349138385,1736985053470,-1569.03,0.00019178,2]
[349138386,1736985053480,-749.17689,0.00019178,2]
[349138387,1736985053489,-749.17689,0.00019178,2]
[349138388,1736985053498,-500.0,0.00019178,2]
[349138389,1736985053508,-500.0,0.00019178,2]
[349138390,1736985053517,-749.17689,0.00019178,2]
[349138391,1736985053527,-749.17689,0.00019178,2]
[349138392,1736985053536,-749.17688,0.00019178,2]
[349138393,1736985053546,-500.0,0.00019178,2]
[349138394,1736985053556,-500.0,0.00019178,2]
[349138395,1736985053566,-500.0,0.00019178,2]
[349138396,1736985053576,-1166.84,0.00019178,2]
[349138397,1736985053586,-500.0,0.00019178,2]
[349138398,1736985053595,-779.23,0.00019178,2]
[349138399,1736985053605,-888.63,0.00019178,2]
[349138400,1736985053614,-500.0,0.00019178,2]
[349138401,1736985053623,-500.0,0.00019178,2]
[349138402,1736985053632,-500.0,0.00019178,2]
[349138403,1736985053642,-386.06483345,0.00019178,2]
[349138404,1736985053651,-500.0,0.00019178,2]
[349138405,1736985053660,-500.0,0.00019178,2]
[349138406,1736985053669,-505.06058262,0.00019178,2]
[349138407,1736985053678,-500.0,0.00019178,2]
[349138408,1736985053688,-500.0,0.00019178,2]
[349138409,1736985053697,-500.0,0.00019178,2]
[349138410,1736985053706,-500.0,0.00019178,2]
[349138411,1736985053718,-263.60325941,0.00019178,2]
[349138412,1736985053727,-745.05,0.00019178,2]
[349138413,1736985053736,-500.0,0.00019178,2]
[349138414,1736985053746,-500.0,0.00019178,2]
[349138415,1736985053756,-1568.02,0.00019178,2]
[349138416,1736985053766,-500.0,0.00019178,2]
[349138417,1736985053776,-41271.47,0.00019178,2]
[349138418,1736985053785,-500.0,0.00019178,2]
[349138419,1736985053795,-500.0,0.00019178,2]
[349138420,1736985053805,-500.0,0.00019178,2]
[349138421,1736985053815,-2173.32,0.00019178,2]
[349138422,1736985053825,-500.0,0.00019178,2]
[349138423,1736985053834,-500.0,0.00019178,2]
[349138424,1736985053843,-1055.15,0.00019178,2]
[349138425,1736985053853,-500.0,0.00019178,2]
[349138426,1736985053863,-500.0,0.00019178,2]
[349138427,1736985053872,-1231.21,0.00019178,2]
[349138428,1736985053882,-179.6421209,0.00019178,2]
[349138429,1736985053894,-204.25833889,0.00019181,2]
[349138430,1736985053904,-153.9757311,0.000192,2]
[349138431,1736985053914,-153.9757311,0.000192,2]
[349138432,1736985053924,-353.4540553,0.000192,2]
[349138433,1736985053935,-153.0,0.000192,2]
[349138434,1736985053944,-269.7486647,0.000192,2]
[349138435,1736985053954,-306.0,0.000192,2]
[349138436,1736985053964,-432.2417881,0.000192,2]
[349138437,1736985053975,-620.0,0.000192,2]
[349138438,1736985053985,-308.549415,0.00019205,2]
[349138439,1736985053995,-204.25833889,0.00019215,2]
[349138440,1736985054004,-152.0,0.00019235,2]
[349138441,1736985054014,-530.56550963,0.00019292,2]
[349138442,1736985054024,-151.0,0.000193,2]
[349138443,1736985054034,-151.0,0.000193,2]
[349138444,1736985054043,-151.0,0.000193,2]
[349138445,1736985054053,-151.0,0.000193,2]
[349138446,1736985054063,-151.0,0.000193,2]
[349138447,1736985054072,-151.0,0.000193,2]
[349138448,1736985054082,-151.0,0.000193,2]
[349138449,1736985054093,-775.4009,0.000193,2]
[349138450,1736985054103,-160.0,0.00019314,2]
[349138451,1736985054113,-161.41094343,0.00019314,2]
[349138452,1736985054124,-931.5,0.00019315,3]
[349138453,1736985054133,-500.0,0.00019315,3]
[349138454,1736985054143,-500.0,0.00019315,3]
[349138455,1736985054152,-500.0,0.00019315,3]
[349138456,1736985054162,-500.0,0.00019315,3]
[349138457,1736985054171,-500.0,0.00019315,3]
[349138458,1736985054181,-582.7,0.00019315,3]
[349138459,1736985054190,-500.0,0.00019315,3]
[349138460,1736985054200,-500.0,0.00019315,3]
[349138461,1736985054210,-500.0,0.00019315,3]
[349138462,1736985054219,-500.0,0.00019315,3]
[349138463,1736985054229,-500.0,0.00019315,3]
[349138464,1736985054238,-500.0,0.00019315,3]
[349138465,1736985054247,-500.0,0.00019315,3]
[349138466,1736985054257,-500.0,0.00019315,3]
[349138467,1736985054266,-500.0,0.00019315,3]
[349138468,1736985054275,-500.0,0.00019315,3]
[349138469,1736985054285,-500.0,0.00019315,3]
[349138470,1736985054294,-506.34,0.00019315,3]
[349138471,1736985054304,-500.0,0.00019315,3]
[349138472,1736985054314,-500.0,0.00019315,3]
[349138473,1736985054323,-500.0,0.00019315,3]
[349138474,1736985054332,-500.0,0.00019315,3]
[349138475,1736985054342,-500.0,0.00019315,3]
[349138476,1736985054351,-575.35,0.00019315,3]
[349138477,1736985054360,-500.0,0.00019315,3]
[349138478,1736985054369,-523.92,0.00019315,3]
[349138479,1736985054379,-187.51778524,0.00019315,3]
[349138480,1736985054387,-500.0,0.00019315,3]
[349138481,1736985054397,-500.0,0.00019315,3]
[349138482,1736985054407,-500.0,0.00019315,3]
[349138483,1736985054416,-500.0,0.00019315,3]
[349138484,1736985054426,-500.0,0.00019315,3]
[349138485,1736985054435,-500.0,0.00019315,3]
[349138486,1736985054444,-500.0,0.00019315,3]
[349138487,1736985054454,-500.0,0.00019315,3]
[349138488,1736985054464,-500.0,0.00019315,3]
[349138489,1736985054474,-500.0,0.00019315,3]
[349138490,1736985054483,-500.0,0.00019315,3]
[349138491,1736985054492,-586.54,0.00019315,3]
[349138492,1736985054502,-345.50289193,0.00019315,3]
[349138493,1736985054511,-500.0,0.00019315,3]
[349138494,1736985054522,-500.0,0.00019315,3]
[349138495,1736985054532,-500.0,0.00019315,3]
[349138496,1736985054541,-500.0,0.00019315,3]
[349138497,1736985054551,-191.87443764,0.00019315,3]
[349138498,1736985054562,-500.0,0.00019315,3]
[349138499,1736985054572,-500.0,0.00019315,3]
[349138500,1736985054582,-500.0,0.00019315,3]
[349138501,1736985054591,-500.0,0.00019315,3]
[349138502,1736985054600,-570.97,0.00019315,3]
[349138503,1736985054610,-500.0,0.00019315,3]
[349138504,1736985054620,-500.0,0.00019315,3]
[349138505,1736985054630,-500.0,0.00019315,3]
[349138506,1736985054639,-500.0,0.00019315,3]
[349138507,1736985054648,-500.0,0.00019315,3]
[349138508,1736985054747,-500.0,0.00019315,3]
[349138509,1736985054757,-500.0,0.00019315,3]
[349138510,1736985054768,-794.3,0.00019315,3]
[349138511,1736985054778,-500.0,0.00019315,3]
[349138512,1736985054787,-500.0,0.00019315,3]
[349138513,1736985054798,-500.0,0.00019315,3]
[349138514,1736985054807,-500.0,0.00019315,3]
[349138515,1736985054818,-891.23,0.00019315,3]
[349138516,1736985054827,-500.0,0.00019315,3]
[349138517,1736985054836,-500.0,0.00019315,3]
[349138518,1736985054845,-755.98,0.00019315,3]
[349138519,1736985054854,-500.0,0.00019315,3]
[349138520,1736985054863,-500.0,0.00019315,3]
[349138521,1736985054873,-500.0,0.00019315,3]
[349138522,1736985054882,-500.0,0.00019315,3]
[349138523,1736985054891,-626.05,0.00019315,3]
[349138524,1736985054900,-500.0,0.00019315,3]
[349138525,1736985054910,-622.57,0.00019315,3]
[349138526,1736985054919,-621.5,0.00019315,3]
[349138527,1736985054928,-500.0,0.00019315,3]
[349138528,1736985054938,-672.77,0.00019315,3]
[349138529,1736985054947,-500.0,0.00019315,3]
[349138530,1736985054956,-500.0,0.00019315,3]
[349138531,1736985054965,-500.0,0.00019315,3]
[349138532,1736985054975,-500.0,0.00019315,3]
[349138533,1736985054984,-21.0131461,0.00019315,3]
[349138534,1736985055193,-478.9868539,0.00019315,3]
[349138535,1736985055203,-650.56,0.00019315,3]
[349138536,1736985055213,-500.0,0.00019315,3]
[349138537,1736985055223,-500.0,0.00019315,3]
[349138538,1736985055234,-1088.68,0.00019315,3]
[349138539,1736985055244,-500.0,0.00019315,3]
[349138540,1736985055253,-500.0,0.00019315,3]
[349138541,1736985055263,-500.0,0.00019315,3]
[349138542,1736985055272,-500.0,0.00019315,3]
[349138543,1736985055281,-231.95135092,0.00019315,3]
[349138544,1736985093595,1000.000001,0.00015054,7]
[349138545,1736985125442,2999.99999999,0.00015054,7]
[349138546,1736985252393,437.75803151,0.00025,120]
[349138547,1736985649124,162.656798,0.00013973,2]
[349138548,1736985690821,160.0,0.00024067,120]
[349138549,1736985796263,3390.0,0.00025,120]
[349138551,1736985931529,160.0,0.00024632,120]
[349138610,1736986232828,-177.57,0.00017659,2]
[349138611,1736986232839,-295.21669662,0.00017659,2]
[349138612,1736986232848,-196.68648642,0.00018017,2]
[349138613,1736986232859,-205.0268415,0.00018117,2]
[349138615,1736986232868,-170.05380415,0.0001824,2]
[349138616,1736986232879,-57.62868331,0.0001834,2]
[349139127,1736986238578,-560.82431669,0.0001834,2]
[349139129,1736986238588,-1980.85216698,0.00018646,2]
[349139131,1736986238598,-300.0,0.00018652,2]
[349139133,1736986238608,-9104.72951633,0.00018655,2]
[349139564,1736986243154,154.5200618,0.00025,120]
[349139626,1736986243737,-815.77749185,0.00018655,2]
[349139901,1736986246736,-15411.49299182,0.00018655,2]
[349139903,1736986246746,-704.0,0.00018656,2]
[349139905,1736986246756,-704.0,0.00018656,2]
[349139907,1736986246766,-704.0,0.00018656,2]
[349139909,1736986246775,-704.0,0.00018656,2]
[349139911,1736986246787,-706.18,0.00018656,2]
[349139913,1736986246797,-1280.0,0.00018746,2]
[349139915,1736986246807,-869.0,0.00018746,2]
[349139917,1736986246816,-190.98398771,0.00018746,2]
[349139949,1736986247151,-421.01601229,0.00018746,2]
[349139951,1736986247160,-153.6,0.00018956,2]
[349139953,1736986247171,-108.97824955,0.00018956,2]
[349139957,1736986247192,-185.64175045,0.00018956,2]
[349139959,1736986247202,-103.02427798,0.00018999,2]
[349140113,1736986411607,160.0,0.00024253,120]
[349140117,1736986470758,160.0,0.0002469,120]
[349140121,1736986578055,170.125439,0.00013973,2]
[349140123,1736986711294,160.0,0.00023271,120]
[349140128,1736986857975,874.0,0.00018,30]
[349140129,1736986953766,5000.0,0.00025,120]
[349140131,1736986999499,4400.177918,0.00025,120]
[349140170,1736987430732,160.0,0.00023986,120]
[349140220,1736987432023,-300.0,0.00017911,2]
[349140222,1736987432033,-15077.73500851,0.00017912,2]
[349141349,1736987442910,-9822.26499149,0.00017912,2]
[349141351,1736987442920,-633.767,0.0001834,2]
[349141353,1736987442930,-154.1948275,0.000189,2]
[349141355,1736987442939,-12803.53516644,0.00018903,2]
[349141357,1736987442948,-154.1948275,0.00018989,2]
[349141359,1736987442958,-159.21,0.00018999,2]
[349141361,1736987442968,-50.46300621,0.00018999,2]
[349141363,1736987442979,-500.0,0.00018999,2]
[349141365,1736987442988,-463.59776024,0.00018999,2]
[349141367,1736987442997,-169.10574546,0.00018999,2]
[349141369,1736987443006,-264.21339239,0.00018999,2]
[349141371,1736987443016,-533.01350972,0.00018999,2]
[349141373,1736987443025,-500.0,0.00018999,2]
[349141375,1736987443035,-500.0,0.00018999,2]
[349141377,1736987443044,-500.0,0.00018999,2]
[349141379,1736987443053,-500.0,0.00018999,2]
[349141381,1736987443063,-370.46497959,0.00018999,2]
[349141383,1736987443074,-500.0,0.00018999,2]
[349141385,1736987443084,-500.0,0.00018999,2]
[349141387,1736987443094,-500.0,0.00018999,2]
[349141389,1736987443104,-500.0,0.00018999,2]
[349141391,1736987443113,-500.0,0.00018999,2]
[349141393,1736987443123,-500.0,0.00018999,2]
[349141395,1736987443134,-500.0,0.00018999,2]
[349141397,1736987443143,-154.72843148,0.00018999,2]
[349141399,1736987443153,-500.0,0.00018999,2]
[349141402,1736987443163,-500.0,0.00018999,2]
[349141417,1736987443300,-500.0,0.00018999,2]
[349141419,1736987443310,-500.0,0.00018999,2]
[349141421,1736987443320,-500.0,0.00018999,2]
[349141423,1736987443330,-500.0,0.00018999,2]
[349141425,1736987443339,-500.0,0.00018999,2]
[349141427,1736987443348,-500.0,0.00018999,2]
[349141429,1736987443358,-500.0,0.00018999,2]
[349141431,1736987443368,-500.0,0.00018999,2]
[349141433,1736987443378,-500.0,0.00018999,2]
[349141435,1736987443387,-500.0,0.00018999,2]
[349141438,1736987443397,-500.0,0.00018999,2]
[349141440,1736987443407,-500.0,0.00018999,2]
[349141442,1736987443416,-500.0,0.00018999,2]
[349141444,1736987443426,-500.0,0.00018999,2]
[349141446,1736987443439,-500.0,0.00018999,2]
[349141447,1736987443449,-500.0,0.00018999,2]
[349141450,1736987443459,-500.0,0.00018999,2]
[349141452,1736987443469,-500.0,0.00018999,2]
[349141453,1736987443479,-500.0,0.00018999,2]
[349141455,1736987443489,-500.0,0.00018999,2]
[349141457,1736987443499,-500.0,0.00018999,2]
[349141460,1736987443509,-500.0,0.00018999,2]
[349141462,1736987443521,-500.0,0.00018999,2]
[349141465,1736987443532,-500.0,0.00018999,2]
[349141468,1736987443541,-500.0,0.00018999,2]
[349141471,1736987443550,-500.0,0.00018999,2]
[349141473,1736987443559,-500.0,0.00018999,2]
[349141477,1736987443568,-573.69057554,0.00018999,2]
[349141479,1736987443578,-500.0,0.00018999,2]
[349141481,1736987443587,-500.0,0.00018999,2]
[349141483,1736987443597,-500.0,0.00018999,2]
[349141485,1736987443606,-206.51046175,0.00018999,2]
[349141487,1736987443615,-500.0,0.00018999,2]
[349141489,1736987443625,-500.0,0.00018999,2]
[349141491,1736987443635,-500.0,0.00018999,2]
[349141493,1736987443644,-497.4384696,0.00018999,2]
[349141495,1736987443654,-500.0,0.00018999,2]
[349141497,1736987443664,-500.0,0.00018999,2]
[349141499,1736987443674,-500.0,0.00018999,2]
[349141501,1736987443683,-537.872343,0.00018999,2]
[349141503,1736987443693,-500.0,0.00018999,2]
[349141505,1736987443702,-500.0,0.00018999,2]
[349141507,1736987443712,-500.0,0.00018999,2]
[349141509,1736987443721,-500.0,0.00018999,2]
[349141511,1736987443731,-500.0,0.00018999,2]
[349141513,1736987443740,-500.0,0.00018999,2]
[349141515,1736987443750,-500.0,0.00018999,2]
[349141517,1736987443759,-210.83933577,0.00018999,2]
[349141519,1736987443769,-366.72407156,0.00018999,2]
[349141521,1736987443779,-290.07798384,0.00018999,2]
[349141523,1736987443789,-70116.01851089,0.00019,2]
[349141525,1736987443799,-1101.888855,0.00019,2]
[349141527,1736987443808,-386.00002,0.00019012,7]
[349141530,1736987443818,-154.1948275,0.00019078,2]
[349141532,1736987443827,-2713.37844722,0.0001908,2]
[349141534,1736987443836,-242.83752191,0.00019098,2]
[349141536,1736987443846,-500.0,0.00019098,2]
[349141538,1736987443856,-500.0,0.00019098,2]
[349141540,1736987443865,-222.52283104,0.00019098,2]
[349141541,1736987443874,-500.0,0.00019099,2]
[349141544,1736987443884,-1429127.18705293,0.00019099,7]
[349141546,1736987443894,-19548.75434694,0.000191,2]
[349142605,1736987455626,203.0,0.00015053,2]
[349142620,1736987467859,170.125439,0.00013973,2]
[349142621,1736987730738,160.0,0.00024887,120]
[349142623,1736987790754,160.0,0.00024473,120]
[349142624,1736988150758,160.0,0.00024839,120]
[349142626,1736988395206,9019.26742774,0.00015053,2]
[349142627,1736988395243,980.73257226,0.00015053,2]
[349142628,1736988435489,151.652509,0.00025,120]
[349142629,1736988484863,169.09881,0.00013973,2]
[349142710,1736988632419,-271.60291709,0.00017776,2]
[349142712,1736988632429,-289.4236187,0.00017956,2]
[349142714,1736988632438,-311.0335797,0.00018052,2]
[349142716,1736988632447,-554.24310008,0.00018156,2]
[349142718,1736988632457,-620.548,0.0001834,2]
[349142721,1736988632467,-194.77,0.0001869,2]
[349142723,1736988632477,-154.48,0.0001889,2]
[349142725,1736988632486,-60.82059739,0.00018925,2]
[349142727,1736988632498,-939.17940261,0.00018925,2]
[349142729,1736988632509,-200.0,0.00019,4]
[349142731,1736988632519,-180.0,0.00019,4]
[349142733,1736988632528,-159.21,0.00019,2]
[349142735,1736988632542,-180.0,0.00019,5]
[349142737,1736988632552,-180.0,0.00019,5]
[349142739,1736988632562,-180.0,0.00019,6]
[349142741,1736988632572,-77.89743865,0.00019,4]
[349143060,1736988635894,-104.2296917,0.00019,4]
[349143062,1736988635906,-469.462155,0.00019064,2]
[349143064,1736988635917,-300.0,0.00019098,2]
[349143066,1736988635926,-145.0544533,0.00019099,2]
[349143069,1736988635950,-269.94999999,0.00019099,2]
[349143336,1736988637850,-84.99554671,0.00019099,2]
[349143338,1736988637860,-504.20803811,0.00019099,2]
[349143340,1736988637870,-263.10038324,0.00019099,2]
[349143342,1736988637879,-500.0,0.00019099,2]
[349143344,1736988637889,-500.0,0.00019099,2]
[349143345,1736988637899,-607.36905755,0.00019099,2]
[349143347,1736988637909,-221.48602474,0.00019099,2]
[349143350,1736988637919,-267.98048325,0.00019099,2]
[349143352,1736988637929,-264.81832778,0.00019099,2]
[349143354,1736988637939,-15633.41564452,0.000191,2]
[349143356,1736988637956,-644.20913201,0.000191,2]
[349143358,1736988637967,-1846.85900455,0.000191,2]
[349143361,1736988637979,-2993.0,0.000191,2]
[349143363,1736988637990,-673.20529765,0.000191,2]
[349143365,1736988638002,-49648.46733953,0.000191,2]
[349143367,1736988638013,-2266.37252293,0.000191,2]
[349143369,1736988638025,-308.66509464,0.000191,2]
[349143595,1736988640145,-4754.77714989,0.000191,2]
[349143602,1736988640201,-1534.94440048,0.000191,2]
[349143604,1736988640212,-754.75994456,0.000191,2]
[349143606,1736988640223,-503.01188397,0.000191,2]
[349143611,1736988640260,-1722.77376323,0.000191,2]
[349144197,1736988646066,-698.58,0.00018909,2]
[349144199,1736988646078,-271.60321408,0.00018909,2]
[349144558,1736988750734,160.0,0.0002305,120]
[349144560,1736989133208,295.45697916,0.00025,120]
[349144561,1736989599856,485.45071472,0.00025,120]
[349144610,1736989832727,-673.5895907,0.00016641,14]
[349144613,1736989832790,-3356.22719522,0.00016641,14]
[349144615,1736989832800,-192.483756,0.00017179,2]
[349144617,1736989832809,-1198.4663249,0.00017532,2]
[349144620,1736989832819,-300.0,0.00017565,2]
[349144622,1736989832829,-16327.56880707,0.00017566,2]
[349145156,1736989838081,-1997.32,0.00017566,2]
[349145163,1736989838141,-6575.11119293,0.00017566,2]
[349145165,1736989838152,-2098.83381539,0.00017576,2]
[349145167,1736989838163,-196.68648642,0.00017676,2]
[349145169,1736989838177,-152.0,0.00017829,2]
[349145171,1736989838187,-160.0,0.00017851,3]
[349145173,1736989838197,-160.0,0.00017921,4]
[349145175,1736989838207,-160.0,0.00017991,5]
[349145178,1736989838219,-160.0,0.00018061,6]
[349145181,1736989838229,-160.0,0.00018131,7]
[349145184,1736989838238,-633.257,0.0001814,2]
[349145187,1736989838248,-1000.0,0.0001816,2]
[349145191,1736989838258,-160.0,0.000182,8]
[349145194,1736989838267,-152.0,0.0001823,2]
[349145198,1736989838278,-160.0,0.0001827,9]
[349145201,1736989838287,-160.0,0.0001834,10]
[349145203,1736989838298,-443.3216861,0.00018384,2]
[349145206,1736989838307,-307.8409074,0.00018384,2]
[349145210,1736989838317,-160.0,0.0001841,11]
[349145213,1736989838327,-160.0,0.0001848,12]
[349145215,1736989838336,-160.0,0.0001855,13]
[349145217,1736989838346,-312.48247529,0.0001855,5]
[349145219,1736989838356,-80.95486521,0.00018595,2]
[349145979,1736989855407,168.186251,0.00013973,2]
[349145980,1736989922358,2395.0,0.00025,120]
[349145981,1736989942562,199.43,0.00015053,2]
[349145983,1736990432614,3958.09998892,0.00025,120]
[349145987,1736990717570,160.338869,0.00013973,2]
[349146062,1736991038585,-413.300005,0.00016,2]
[349146084,1736991043816,-2386.50540761,0.00016,2]
[349146085,1736991043827,-300.0,0.00017913,2]
[349146086,1736991043837,-176.0,0.00017914,2]